bitfinex-derivatives/quotes_ETHF0:USTF0_20250320
["timestamp","ask_amount","ask_price","bid_price","bid_amount"]
[1742482353020,2.49944,2001.5,2000.9,87.69203272]
[1742482353021,0.99996,2001.1,2000.9,87.69203272]
[1742482353214,0.99996,2001.1,2000.9,86.97]
[1742482353410,0.99998,2001.0,2000.9,86.97]
[1742482353809,0.99998,2001.0,2000.9,88.3529]
[1742482354214,0.99998,2001.0,2000.9,42.1829]
[1742482354414,0.99998,2001.0,2000.9,0.62798376]
[1742482354617,4.49098,2001.0,2000.9,0.62798376]
[1742482355016,3.491,2001.0,2000.7,40.8]
[1742482355216,2.29612,2000.9,2000.8,1.4311]
[1742482356723,1.00007,2000.8,2000.7,40.8]
[1742482356918,2.29617,2000.8,2000.7,40.8]
[1742482357115,1.00017,2000.6,2000.5,4.6389]
[1742482357623,1.00017,2000.6,2000.5,45.4389]
[1742482358312,1.00027,2000.4,2000.3,1.3982]
[1742482358518,1.413,2000.5,2000.3,1.3982]
[1742482358719,2.41322,2000.5,2000.4,40.8]
[1742482359021,1.00037,2000.2,2000.1,3.2078]
[1742482359519,1.00037,2000.2,2000.1,44.0078]
[1742482360318,1.00037,2000.2,2000.1,40.8]
[1742482361121,2.39235,2000.3,2000.1,40.8]
[1742482361329,2.39235,2000.3,2000.2,1.3381]
[1742482362926,1.392,2000.3,2000.2,1.3381]
[1742482363123,3.2078,2000.6,2000.2,2.33847]
[1742482363424,1.00028,2000.4,2000.2,2.33844]
[1742482364623,1.00031,2000.4,2000.2,2.33844]
[1742482365033,1.00031,2000.4,2000.3,40.8]
[1742482365731,2.50028,2000.8,2000.3,40.8]
[1742482365922,2.50028,2000.8,2000.4,2.6912]
[1742482365923,1.00027,2000.5,2000.4,2.6912]
[1742482366124,1.00021,2000.6,2000.4,3.69147]
[1742482366424,1.00017,2000.6,2000.4,3.69147]
[1742482366629,1.00014,2000.7,2000.5,1.00019]
[1742482366831,1.00011,2000.8,2000.7,1.00012]
[1742482367030,3.21778652,2001.2,2000.8,1.00006]
[1742482367337,3.21778652,2001.2,2000.7,3.2078]
[1742482367338,1.00002,2001.0,2000.9,42.1328]
[1742482367529,1.00002,2001.0,2000.9,1.3328]
[1742482368127,1.00002,2001.0,2000.9,42.1328]
[1742482369827,1.4194,2001.1,2000.9,42.1328]
[1742482370023,1.4194,2001.1,2001.0,0.99998]
[1742482370336,2.41933,2001.1,2001.0,1.3767]
[1742482371433,0.00748652,2001.2,2001.0,1.3767]
[1742482371736,0.00748652,2001.2,2001.0,5.9074]
[1742482371737,1.00737652,2001.2,2001.0,5.9074]
[1742482372129,0.00748652,2001.2,2001.1,0.99993]
[1742482373222,0.00748652,2001.2,2001.1,1.72101068]
[1742482373429,0.00748652,2001.2,2001.1,0.99993]
[1742482373634,0.00748652,2001.2,2001.1,1.72099733]
[1742482373934,1.00736652,2001.2,2001.1,1.72099733]
[1742482374233,0.00748652,2001.2,2001.1,1.72170657]
[1742482374435,0.00748652,2001.2,2001.1,2.34980298]
[1742482375335,1.00736652,2001.2,2001.1,0.72177657]
[1742482375532,0.99993,2001.1,2001.0,5.9074]
[1742482375728,0.99993,2001.1,2001.0,1.3767]
[1742482376039,1.00012,2000.8,2000.7,4.1676]
[1742482376232,1.00012,2000.8,2000.7,0.6766]
[1742482376430,1.00012,2000.8,2000.7,1.39986052]
[1742482376632,1.00012,2000.8,2000.7,0.6766]
[1742482377136,1.00012,2000.8,2000.7,2.77691341]
[1742482377338,1.00012,2000.8,2000.7,2.0533]
[1742482377834,1.00012,2000.8,2000.7,1.3767]
[1742482378142,1.00012,2000.8,2000.7,2.10037051]
[1742482378635,1.00012,2000.8,2000.7,2.73016454]
[1742482378823,1.00012,2000.8,2000.7,3.73028454]
[1742482379027,1.00012,2000.8,2000.7,2.73016454]
[1742482379337,1.00012,2000.8,2000.7,1.35401583]
[1742482379527,1.66162,2000.8,2000.7,0.62979403]
[1742482379728,1.00012,2000.7,2000.6,3.2078]
[1742482379933,2.37512,2000.7,2000.6,3.2078]
[1742482380436,2.37512,2000.7,2000.6,3.93247683]
[1742482381331,2.37512,2000.7,2000.6,3.93279468]
[1742482381634,1.00007,2000.9,2000.8,1.00006]
[1742482381834,2.41632,2000.9,2000.8,0.72477062]
[1742482382345,1.00012,2000.7,2000.6,3.2078]
[1742482382635,1.00012,2000.7,2000.6,3.9326656]
[1742482382837,1.00012,2000.7,2000.6,5.2253656]
[1742482383032,2.41642,2000.7,2000.6,5.2253656]
[1742482383238,2.41642,2000.7,2000.6,5.2251404]
[1742482383437,2.41642,2000.7,2000.6,3.9324404]
[1742482383837,2.41642,2000.7,2000.6,4.9326104]
[1742482384233,6.39253,2001.0,2000.8,1.00006]
[1742482384234,3.8925,2001.0,2000.8,1.00006]
[1742482384439,1.4163,2000.9,2000.8,1.00006]
[1742482384638,2.41632,2000.9,2000.8,2.8837652]
[1742482385233,1.4163,2000.9,2000.8,2.8837652]
[1742482385438,2.41632,2000.9,2000.8,2.8837652]
[1742482385639,2.41632,2000.9,2000.8,3.51402323]
[1742482385840,2.41632,2000.9,2000.8,2.51396323]
[1742482386039,2.41632,2000.9,2000.8,1.35476003]
[1742482386933,1.00012,2000.7,2000.6,3.2078]
[1742482387139,1.00012,2000.7,2000.6,5.09185094]
[1742482387641,1.00012,2000.7,2000.6,3.93243498]
[1742482387846,1.00012,2000.7,2000.6,3.93256001]
[1742482388040,2.36692,2000.7,2000.6,3.93256001]
[1742482388236,2.36692,2000.7,2000.6,5.09192553]
[1742482388745,1.00012,2000.7,2000.6,5.72260164]
[1742482389343,1.00012,2000.7,2000.6,6.72277164]
[1742482389858,2.36691,2000.8,2000.7,1.00012]
[1742482390048,2.36691,2000.8,2000.7,2.88424553]
[1742482390238,2.36691,2000.8,2000.7,1.88412553]
[1742482390432,2.36691,2000.8,2000.7,2.51480164]
[1742482390647,2.36691,2000.8,2000.7,1.35543612]
[1742482391039,2.36691,2000.8,2000.7,3.51590872]
[1742482391346,2.36691,2000.8,2000.7,2.51633876]
[1742482391739,2.36691,2000.8,2000.7,1.35543612]
[1742482392038,2.36691,2000.8,2000.7,3.51659705]
[1742482392946,1.00006,2000.9,2000.8,1.00007]
[1742482393144,0.00748652,2001.2,2001.0,0.99998]
[1742482393341,0.00748652,2001.2,2001.1,1.72552677]
[1742482393541,1.00739652,2001.2,2001.1,1.88650982]
[1742482393737,1.00739652,2001.2,2001.1,2.51718593]
[1742482394041,1.00739652,2001.2,2001.1,1.35627288]
[1742482394245,5.55179652,2001.2,2001.1,0.72559677]
[1742482394443,1.00002,2000.9,2000.8,50.3793]
[1742482394643,1.00002,2000.9,2000.8,53.2663722]
[1742482395042,1.00002,2000.9,2000.8,52.26598959]
[1742482395242,1.00002,2000.9,2000.8,51.01084191]
[1742482395545,1.00002,2000.9,2000.8,52.89772483]
[1742482395947,1.00002,2000.9,2000.8,53.89779483]
[1742482396248,1.00002,2000.9,2000.8,52.89772483]
[1742482396440,1.00002,2000.9,2000.8,52.21042483]
[1742482396748,1.00002,2000.9,2000.8,1.35726611]
[1742482396945,1.00002,2000.9,2000.8,1.35763231]
[1742482397140,2.41472,2000.9,2000.8,1.35763231]
[1742482397548,2.41472,2000.9,2000.6,4.20796]
[1742482397549,1.00012,2000.7,2000.6,4.20796]
[1742482397742,1.00012,2000.7,2000.6,5.09532385]
[1742482398043,1.00012,2000.7,2000.6,4.56544173]
[1742482398545,2.41482,2000.7,2000.6,5.56561173]
[1742482398744,2.41482,2000.7,2000.6,6.72688866]
[1742482398945,2.41482,2000.7,2000.6,4.56526097]
[1742482399837,2.41482,2000.7,2000.6,5.56543097]
[1742482400142,2.41482,2000.7,2000.6,4.56526097]
[1742482400349,2.41482,2000.7,2000.6,3.83947102]
[1742482400641,6.56762,2000.7,2000.6,0.63167102]
[1742482400846,1.00027,2000.4,2000.3,42.44852]
[1742482401052,1.00027,2000.4,2000.3,44.33498656]
[1742482401245,1.00027,2000.4,2000.3,42.68646656]
[1742482401442,1.00037,2000.2,2000.1,3.2078]
[1742482401641,1.00037,2000.2,2000.1,6.09460141]
[1742482401846,1.00037,2000.2,2000.1,46.89463]
[1742482402047,1.00037,2000.2,2000.1,45.89421]
[1742482402249,1.00037,2000.2,2000.1,45.36468746]
[1742482402548,1.00037,2000.2,2000.1,42.15688746]
[1742482402744,1.66417,2000.2,2000.1,42.15688348]
[1742482403047,3.04577,2000.2,2000.1,0.63135615]
[1742482403546,1.00053,1999.9,1999.8,40.8]
[1742482403749,1.00053,1999.9,1999.8,41.52587025]
[1742482404050,1.00068,1999.6,1999.5,0.6575]
[1742482404245,1.00068,1999.6,1999.5,1.3416]
[1742482404447,1.00068,1999.6,1999.5,42.1416]
[1742482404647,1.00068,1999.6,1999.5,40.8]
[1742482404951,1.00083,1999.3,1999.2,46.206]
[1742482405251,1.00083,1999.3,1999.2,88.89553011]
[1742482405452,1.00083,1999.3,1999.2,90.30733011]
[1742482405753,1.00083,1999.3,1999.2,90.14553104]
[1742482405952,1.00083,1999.3,1999.2,89.14465104]
[1742482406154,1.00081,1999.4,1999.2,89.14465104]
[1742482406450,1.00081,1999.4,1999.2,89.41864]
[1742482406644,1.00081,1999.4,1999.3,1.00083]
[1742482406843,1.00078,1999.4,1999.3,5.0984642]
[1742482407049,1.00076,1999.5,1999.4,1.00078]
[1742482407255,1.00076,1999.5,1999.4,4.29053672]
[1742482407450,1.00076,1999.5,1999.4,4.92207052]
[1742482407647,1.0007,1999.6,1999.5,1.00073]
[1742482407851,1.0007,1999.6,1999.5,5.33584408]
[1742482408151,1.00068,1999.6,1999.5,8.12992986]
[1742482408352,1.00066,1999.7,1999.5,6.96827998]
[1742482408554,1.00066,1999.7,1999.6,2.07394408]
[1742482408755,1.00066,1999.7,1999.6,2.70567998]
[1742482409254,1.00066,1999.7,1999.6,1.9797359]
[1742482409755,1.00066,1999.7,1999.6,1.348]
[1742482410553,1.00068,1999.6,1999.5,4.6099]
[1742482411553,1.00068,1999.6,1999.5,5.61063]
[1742482411857,1.00068,1999.6,1999.5,4.6099]
[1742482412057,1.00068,1999.6,1999.5,5.61063]
[1742482412258,1.4111,1999.7,1999.5,4.6099]
[1742482412468,1.4111,1999.7,1999.5,3.2078]
[1742482412669,2.41176,1999.7,1999.5,4.20851]
[1742482412870,1.4111,1999.7,1999.5,3.2078]
[1742482413073,1.4111,1999.7,1999.6,1.00068]
[1742482413573,1.65453,1999.9,1999.8,1.00058]
[1742482413871,3.00163,1999.9,1999.7,4.20839]
[1742482414067,0.00748652,2000.0,1999.9,1.00053]
[1742482414266,1.00800652,2000.0,1999.8,2.32275]
[1742482414468,1.00053,1999.9,1999.8,1.3222]
[1742482415065,1.00063,1999.7,1999.6,3.489]
[1742482415369,1.00063,1999.7,1999.6,4.48968]
[1742482416369,1.00063,1999.7,1999.6,3.489]
[1742482416669,1.3678,1999.8,1999.5,4.2085]
[1742482416670,1.00068,1999.6,1999.5,4.2085]
[1742482416867,1.00068,1999.6,1999.5,3.2078]
[1742482416868,2.36848,1999.6,1999.5,3.2078]
[1742482417171,2.36848,1999.6,1999.5,4.20853]
[1742482418571,2.36848,1999.6,1999.5,3.2078]
[1742482418776,2.36848,1999.6,1999.5,4.20853]
[1742482419273,2.36848,1999.6,1999.5,3.2078]
[1742482420770,1.00083,1999.3,1999.2,94.70364]
[1742482420970,1.00083,1999.3,1999.2,94.70368]
[1742482421778,1.00083,1999.3,1999.2,90.2138]
[1742482421971,1.00083,1999.3,1999.2,91.21468]
[1742482422170,1.00083,1999.3,1999.2,90.2138]
[1742482422370,1.00083,1999.3,1999.2,91.21468]
[1742482422674,1.00083,1999.3,1999.2,90.2138]
[1742482423076,1.00083,1999.3,1999.2,91.21468]
[1742482423866,1.00083,1999.3,1999.2,90.2138]
[1742482424079,1.00083,1999.3,1999.2,91.5541]
[1742482424378,1.00083,1999.3,1999.2,46.34898]
[1742482424769,1.00083,1999.3,1999.2,45.3481]
[1742482424969,1.00083,1999.3,1999.2,46.34898]
[1742482426278,1.00083,1999.3,1999.2,45.3481]
[1742482426479,1.00083,1999.3,1999.2,44.0078]
[1742482426978,1.70323,1999.3,1999.2,3.2078]
[1742482427176,2.41693,1999.3,1999.2,3.2078]
[1742482427477,1.00093,1999.1,1999.0,45.00878]
[1742482427678,1.00093,1999.1,1999.0,44.73333322]
[1742482428075,1.00093,1999.1,1999.0,46.08793322]
[1742482428270,1.00093,1999.1,1999.0,47.72036393]
[1742482428673,1.2987,1999.2,1999.1,1.00093]
[1742482428880,3.489,1999.5,1999.1,2.08013322]
[1742482429176,2.29948,1999.4,1999.3,1.0008]
[1742482429479,1.00083,1999.3,1999.2,3.03077]
[1742482429682,2.29953,1999.3,1999.2,2.40256541]
[1742482429871,1.2987,1999.3,1999.2,5.61036541]
[1742482430273,2.29944,1999.5,1999.4,1.00078]
[1742482430574,2.29944,1999.5,1999.4,1.72717541]
[1742482430779,2.29944,1999.5,1999.4,2.35924483]
[1742482430981,2.29944,1999.5,1999.4,2.35979868]
[1742482431374,2.29944,1999.5,1999.4,1.35901868]
[1742482431577,2.29944,1999.5,1999.4,0.63206942]
[1742482432176,1.00083,1999.3,1999.2,1.00087]
[1742482432380,1.3766,1999.6,1999.3,1.00083]
[1742482432381,2.36202,1999.4,1999.3,1.00083]
[1742482432583,1.3612,1999.4,1999.3,1.72885151]
[1742482432883,1.00076,1999.5,1999.3,2.52630369]
[1742482433078,2.36196,1999.5,1999.4,1.72880151]
[1742482433277,2.36196,1999.5,1999.4,2.89373906]
[1742482433482,1.00072,1999.6,1999.5,1.0007]
[1742482433676,1.00072,1999.6,1999.5,1.89295906]
[1742482433982,1.00072,1999.6,1999.5,1.36155578]
[1742482434682,1.00072,1999.6,1999.5,0.63353427]
[1742482435080,2.31852,1999.6,1999.5,0.63353427]
[1742482435279,1.00083,1999.3,1999.2,3.489]
[1742482435479,1.00088,1999.2,1999.1,4.86079]
[1742482435781,1.00088,1999.2,1999.1,7.38817888]
[1742482436281,2.31866,1999.3,1999.2,1.00088]
[1742482436479,2.31866,1999.3,1999.2,2.89446559]
[1742482437272,2.50158,1999.7,1999.2,5.02951888]
[1742482437476,1.00074,1999.5,1999.4,1.00072]
[1742482437685,2.3991,1999.6,1999.5,1.00073]
[1742482437882,2.3991,1999.6,1999.5,6.10211559]
[1742482438284,1.3754,1999.9,1999.5,6.10211559]
[1742482438484,2.39903,1999.8,1999.7,4.2084]
[1742482438681,1.3984,1999.8,1999.7,6.10161856]
[1742482438887,1.3984,1999.8,1999.7,5.10030789]
[1742482438888,1.00058,1999.8,1999.7,5.10030789]
[1742482439086,1.00058,1999.8,1999.7,6.73433821]
[1742482439485,1.00055,1999.9,1999.8,1.00053]
[1742482439681,1.40588652,2000.0,1999.9,1.00053]
[1742482439682,0.00748652,2000.0,1999.9,1.00053]
[1742482439884,1.00796652,2000.0,1999.9,6.38103789]
[1742482440083,0.00748652,2000.0,1999.9,10.22228821]
[1742482440485,0.00748652,2000.0,1999.9,51.02228821]
[1742482440686,1.00036,2000.3,2000.2,1.00037]
[1742482440885,1.00031,2000.4,2000.3,1.0003]
[1742482441190,1.3809,2000.6,2000.3,2.52280898]
[1742482441493,1.00027,2000.4,2000.3,0.63345032]
[1742482441686,1.00027,2000.4,2000.3,2.52072291]
[1742482441886,1.00027,2000.4,2000.3,2.3596477]
[1742482442282,1.00027,2000.4,2000.3,1.3593277]
[1742482442684,1.00027,2000.4,2000.3,0.63345032]
[1742482442983,1.00027,2000.4,2000.3,1.35884188]
[1742482443185,1.38838652,2000.6,2000.3,1.35884188]
[1742482443393,2.38859652,2000.6,2000.5,1.00022]
[1742482443586,2.38859652,2000.6,2000.5,4.20802]
[1742482443889,2.38859652,2000.6,2000.5,4.56314579]
[1742482444093,2.38859652,2000.6,2000.5,5.25893506]
[1742482444484,2.38859652,2000.6,2000.5,4.6283]
[1742482444892,2.38859652,2000.6,2000.5,5.62852]
[1742482445487,2.38859652,2000.6,2000.5,4.6283]
[1742482445697,2.38859652,2000.6,2000.5,1.4205]
[1742482446197,1.00022,2000.5,2000.4,0.6672]
[1742482446393,2.35122,2000.5,2000.4,2.0742]
[1742482446592,2.35122,2000.5,2000.4,3.07447]
[1742482446891,2.35122,2000.5,2000.4,2.0742]
[1742482447294,1.00027,2000.4,2000.3,3.487]
[1742482447594,3.70997,2000.4,2000.3,3.487]
[1742482447796,3.70997,2000.4,2000.3,4.894]
[1742482448188,1.351,2000.4,2000.3,5.89432]
[1742482448791,2.35127,2000.4,2000.3,5.89432]
[1742482449295,1.00768652,2000.6,2000.3,4.894]
[1742482449495,2.37608652,2000.6,2000.5,1.00022]
[1742482449895,2.37608652,2000.6,2000.5,2.38602]
[1742482450088,1.37588652,2000.6,2000.5,5.59382]
[1742482450299,0.00748652,2000.6,2000.5,6.30132]
[1742482450503,1.00765652,2000.6,2000.5,6.30132]
[1742482451200,0.00748652,2000.6,2000.5,6.30132]
[1742482452095,2.35715652,2000.6,2000.5,2.0933]
[1742482452695,1.35698652,2000.6,2000.5,6.30132]
[1742482453696,2.35715652,2000.6,2000.5,6.30132]
[1742482454105,1.35698652,2000.6,2000.5,6.30132]
[1742482454306,2.35715652,2000.6,2000.5,6.30132]
[1742482454895,1.35698652,2000.6,2000.5,6.30132]
[1742482455104,2.35715652,2000.6,2000.5,6.30132]
[1742482455289,1.35698652,2000.6,2000.5,6.30132]
[1742482455695,2.35715652,2000.6,2000.5,6.30132]
[1742482455998,1.35698652,2000.6,2000.5,6.30132]
[1742482456299,0.00748652,2000.6,2000.5,6.30132]
[1742482457500,1.33538652,2000.6,2000.5,6.30132]
[1742482458500,0.00748652,2000.6,2000.5,6.30132]
[1742482458702,1.35818652,2000.6,2000.5,6.30132]
[1742482459005,0.00748652,2000.6,2000.5,6.30132]
[1742482459702,0.00748652,2000.6,2000.5,7.65110977]
[1742482459895,1.00001,2001.0,2000.7,1.00012]
[1742482460093,1.3507,2001.0,2000.9,1.00002]
[1742482460503,1.3507,2001.0,2000.9,2.97822]
[1742482460805,0.99993,2001.2,2001.1,0.99989]
[1742482461109,0.99993,2001.1,2001.0,2.39753]
[1742482462199,2.49984,2001.1,2000.8,6.6928]
[1742482462399,1.00002,2000.9,2000.8,6.6928]
[1742482462796,2.32932,2000.9,2000.8,3.2078]
[1742482463103,1.00012,2000.7,2000.6,3.484]
[1742482463595,1.00017,2000.6,2000.5,52.51799]
[1742482463900,1.00017,2000.6,2000.5,91.6144]
[1742482464097,1.00017,2000.6,2000.5,92.61462]
[1742482464300,1.00017,2000.6,2000.5,91.6144]
[1742482464501,2.38377,2000.6,2000.5,91.6144]
[1742482464902,2.38377,2000.6,2000.5,92.61462]
[1742482466106,2.38377,2000.6,2000.5,93.33841927]
[1742482466301,1.00017,2000.6,2000.5,93.33910696]
[1742482466508,1.00017,2000.6,2000.5,93.96956398]
[1742482467105,1.00017,2000.6,2000.5,93.24507702]
[1742482467311,1.00017,2000.6,2000.5,93.96966906]
[1742482467602,1.66922,2000.9,2000.8,1.00007]
[1742482467801,1.66922,2000.9,2000.8,4.93246204]
[1742482468006,0.6692,2000.9,2000.8,4.93246204]
[1742482468202,1.66922,2000.9,2000.8,7.39016585]
[1742482468405,1.67019,2001.1,2000.8,7.02055287]
[1742482468597,1.67019,2001.1,2001.0,0.99998]
[1742482468797,1.67019,2001.1,2001.0,0.72459204]
[1742482468798,0.99999,2001.1,2001.0,0.72459204]
[1742482469002,0.99999,2001.1,2001.0,45.63904906]
[1742482469411,0.99999,2001.1,2001.0,46.80019874]
[1742482469607,2.33909,2001.1,2001.0,46.80019874]
[1742482469910,2.33909,2001.1,2001.0,46.63902906]
[1742482470098,2.33909,2001.1,2001.0,45.63904906]
[1742482470301,2.33909,2001.1,2001.0,46.63902906]
[1742482470503,2.33909,2001.1,2001.0,45.63904906]
[1742482470811,2.33909,2001.1,2001.0,4.83904906]
[1742482471107,2.33909,2001.1,2001.0,4.84031607]
[1742482471307,2.33909,2001.1,2001.0,1.35631607]
[1742482472307,2.33909,2001.1,2001.0,0.63045702]
[1742482473503,7.2991,2001.1,2000.6,1.00016]
[1742482473710,1.00017,2000.7,2000.6,1.00016]
[1742482473901,1.00017,2000.7,2000.6,1.88831773]
[1742482474102,1.00017,2000.7,2000.6,3.19881773]
[1742482474303,1.00017,2000.7,2000.6,4.19898773]
[1742482474504,2.42327,2000.7,2000.6,4.19898773]
[1742482474699,2.42327,2000.7,2000.6,4.83123031]
[1742482474912,2.42327,2000.7,2000.6,4.83184979]
[1742482476006,1.4231,2000.7,2000.6,4.83184979]
[1742482476206,2.42322,2000.7,2000.6,4.83184979]
[1742482477811,1.0001,2000.8,2000.7,1.00012]
[1742482478009,1.0001,2000.8,2000.7,4.25225721]
[1742482478212,1.0001,2000.8,2000.7,2.52117979]
[1742482478511,1.0001,2000.8,2000.7,1.35875689]
[1742482478717,1.0001,2000.8,2000.7,3.52254348]
[1742482478921,1.0001,2000.8,2000.7,2.52242348]
[1742482479804,1.0001,2000.8,2000.7,3.52254348]
[1742482480019,1.0001,2000.8,2000.7,4.94304348]
[1742482480218,1.0001,2000.8,2000.7,3.94292348]
[1742482480621,1.0001,2000.8,2000.7,1.35875689]
[1742482480814,1.0001,2000.8,2000.7,1.35945067]
[1742482481511,1.0001,2000.8,2000.7,3.52269456]
[1742482481718,2.37207,2000.9,2000.8,1.00007]
[1742482482019,2.37207,2000.9,2000.8,3.14777809]
[1742482482411,2.37207,2000.9,2000.8,2.77995067]
[1742482482617,2.37207,2000.9,2000.8,1.35945067]
[1742482482914,2.37207,2000.9,2000.8,1.3592898]
[1742482483624,2.37207,2000.9,2000.8,1.35928246]
[1742482483811,2.37207,2000.9,2000.8,0.63224258]
[1742482485015,2.37207,2000.9,2000.8,1.35918827]
[1742482485212,2.37207,2000.9,2000.8,2.35925827]
[1742482485821,1.372,2000.9,2000.8,6.72999251]
[1742482486015,2.37202,2000.9,2000.8,6.72999251]
[1742482486315,2.37202,2000.9,2000.8,8.08879251]
[1742482486713,2.37202,2000.9,2000.8,8.08826157]
[1742482488711,2.37202,2000.9,2000.8,8.08920379]
[1742482488921,2.37202,2000.9,2000.8,7.08913379]
[1742482489116,2.37202,2000.9,2000.8,8.08920379]
[1742482490621,2.37202,2000.9,2000.8,8.08838942]
[1742482491023,2.37202,2000.9,2000.8,7.08831942]
[1742482491215,2.37202,2000.9,2000.8,8.08838942]
[1742482491515,2.37202,2000.9,2000.8,7.08831942]
[1742482491715,2.37202,2000.9,2000.8,8.08838942]
[1742482492712,1.372,2000.9,2000.8,8.08838942]
[1742482492912,2.39722,2001.0,2000.9,1.00002]
[1742482493115,1.00002,2001.0,2000.9,4.88739684]
[1742482493514,2.39717,2001.1,2001.0,0.99998]
[1742482493813,2.39717,2001.1,2001.0,4.20885684]
[1742482494015,2.39717,2001.1,2001.0,4.84109942]
[1742482494417,2.39717,2001.1,2001.0,1.35896444]
[1742482494618,2.39717,2001.1,2001.0,1.35897432]
[1742482496526,2.39717,2001.1,2001.0,1.35918209]
[1742482497120,2.39717,2001.1,2001.0,0.63224258]
[1742482497629,2.39717,2001.1,2000.6,6.57084]
[1742482497630,1.00012,2000.7,2000.6,6.57084]
[1742482497923,1.00012,2000.7,2000.6,7.07574747]
[1742482498120,1.00012,2000.7,2000.6,3.22714159]
[1742482498524,2.42342,2000.7,2000.6,2.52254159]
[1742482498729,2.42342,2000.7,2000.6,1.35946007]
[1742482499923,5.90342,2000.7,2000.6,1.34448703]
[1742482500130,5.90342,2000.7,2000.2,3.9148]
[1742482500131,1.00027,2000.4,2000.3,40.8]
[1742482500323,1.00027,2000.4,2000.3,41.96329466]
[1742482500631,1.00027,2000.4,2000.3,41.96329178]
[1742482500924,1.00027,2000.4,2000.3,42.59575889]
[1742482501329,1.00027,2000.4,2000.3,42.59494061]
[1742482501529,2.36307,2000.4,2000.3,41.43246711]
[1742482502032,2.36307,2000.4,2000.3,42.59501177]
[1742482502331,1.00027,2000.4,2000.3,42.59462969]
[1742482502533,1.00027,2000.4,2000.3,43.59458996]
[1742482502832,1.00027,2000.4,2000.3,43.59454996]
[1742482503219,1.00023,2000.5,2000.4,1.00024]
[1742482503420,2.40951,2000.6,2000.5,1.00022]
[1742482503722,1.00015,2000.7,2000.6,1.00014]
[1742482503926,1.00015,2000.7,2000.6,3.45404127]
[1742482504437,1.00015,2000.7,2000.6,44.25403022]
[1742482505337,1.00015,2000.7,2000.6,43.25389022]
[1742482505538,1.00015,2000.7,2000.6,42.09250738]
[1742482505834,1.00015,2000.7,2000.6,0.63210738]
[1742482506238,2.31355,2000.7,2000.6,0.63210738]
[1742482506434,2.31355,2000.7,2000.6,1.63227738]
[1742482506635,2.31355,2000.7,2000.6,2.79326153]
[1742482507133,7.32738,2001.0,2000.7,1.00009]
[1742482507134,1.00011,2000.8,2000.7,1.00009]
[1742482507430,1.00006,2000.9,2000.8,1.00003]
[1742482507635,1.00006,2000.9,2000.8,2.86451415]
[1742482507829,0.00748652,2001.4,2000.8,5.07228415]
[1742482508030,0.99998,2001.0,2000.9,4.48001]
[1742482508429,0.99998,2001.0,2000.9,5.64031534]
[1742482508737,1.3332,2001.1,2001.0,0.99998]
[1742482508738,0.99995,2001.1,2001.0,0.99998]
[1742482508939,0.99998,2001.0,2000.9,5.11211738]
[1742482509137,0.99998,2001.0,2000.9,6.27230893]
[1742482509333,2.33316,2001.1,2001.0,0.99998]
[1742482509536,0.99996,2001.1,2001.0,2.16017155]
[1742482509735,0.00748652,2001.4,2001.3,0.99983]
[1742482510037,1.3903,2001.6,2001.5,0.99973]
[1742482510231,0.99966,2001.7,2001.6,0.99968]
[1742482510434,2.38992,2001.8,2001.7,0.99963]
[1742482510630,23.44032308,2002.0,2001.9,0.99953]
[1742482510836,23.44032308,2002.0,2001.9,1.5222319]
[1742482511141,23.44032308,2002.0,2001.9,2.15433928]
[1742482511536,23.44032308,2002.0,2001.9,1.5222319]
[1742482511933,23.44032308,2002.0,2001.9,2.24480157]
[1742482512230,0.00748652,2002.2,2002.0,0.99946]
[1742482512542,0.00748652,2002.2,2002.1,1.53421541]
[1742482512739,0.00748652,2002.2,2002.1,4.74201541]
[1742482512929,0.00748652,2002.2,2002.1,46.26364807]
[1742482513334,0.00748652,2002.2,2002.1,46.89061632]
[1742482513642,1.00686652,2002.2,2002.1,46.16898366]
[1742482513841,0.00748652,2002.2,2002.1,46.88949356]
[1742482514234,0.00748652,2002.2,2002.1,47.53759356]
[1742482515039,0.00748652,2002.2,2002.1,47.53666146]
[1742482515343,0.00748652,2002.2,2002.1,46.81708366]
[1742482515750,0.00748652,2002.2,2002.1,95.51108366]
[1742482516039,0.00748652,2002.2,2002.1,95.98475975]
[1742482516235,0.00748652,2002.2,2002.1,95.26582419]
[1742482516844,0.00748652,2002.2,2002.1,92.76325248]
[1742482517237,1.00686652,2002.2,2002.1,55.44125248]
[1742482517546,1.00686652,2002.2,2002.1,53.5279]
[1742482517841,1.00686652,2002.2,2002.1,50.0499]
[1742482518043,1.00686652,2002.2,2002.1,53.5279]
[1742482518250,1.00686652,2002.2,2002.1,54.52733]
[1742482518749,1.00686652,2002.2,2002.1,54.89476612]
[1742482518750,0.00748652,2002.2,2002.1,54.89476612]
[1742482518942,0.00748652,2002.2,2002.1,55.42650928]
[1742482519139,0.00748652,2002.2,2002.1,54.89476612]
[1742482519447,0.00748652,2002.2,2002.1,95.69476612]
[1742482519740,4.20694,2002.7,2002.2,2.49845]
[1742482519941,0.99919,2002.6,2002.5,0.99919]
[1742482520243,0.99919,2002.6,2002.5,4.7974]
[1742482520941,0.99928,2002.4,2002.3,0.00748652]
[1742482521153,0.99928,2002.4,2002.3,3.48448652]
[1742482522141,0.99938,2002.2,2002.1,46.194]
[1742482522345,0.99943,2002.1,2002.0,3.477]
[1742482522552,0.99948,2002.0,2001.9,1.3563]
[1742482522738,0.99948,2002.0,2001.9,42.1563]
[1742482523344,0.99948,2002.0,2001.9,43.15583]
[1742482523735,0.99948,2002.0,2001.9,42.1563]
[1742482523937,0.99948,2002.0,2001.7,0.00748652]
[1742482523938,0.99953,2001.9,2001.7,0.00748652]
[1742482524144,0.99958,2001.8,2001.7,0.00748652]
[1742482524547,2.39888,2001.8,2001.7,0.00748652]
[1742482524743,0.99988,2001.2,2001.1,46.8449]
[1742482524942,0.99985,2001.3,2001.2,0.99983]
[1742482525242,2.49921,2001.6,2001.3,0.99981]
[1742482525243,0.99983,2001.4,2001.3,0.99981]